[Event "2nd Namma Bengaluru Open-A 2025"]
[Site "Bengaluru"]
[Date "2025.04.13"]
[Round "5.1"]
[White "Viani Antonio Dcunha"]
[Black "Petrosyan, Manuel"]
[Result "1/2-1/2"]
[Annotator "TA"]
[ECO "C92"]
[WhiteElo "2378"]
[BlackElo "2544"]
[PlyCount "51"]
[EventDate "2025.04.10"]
[EventType "swiss"]
[EventCountry "IND"]
[SourceTitle "playchess.com"]
[Source "ChessBase"]
[SourceQuality "1"]
[TimeControl "5400+30"]

{[%evp 27,32,0,25,0,19,0,59]} 1. e4 {[%emt 0:00:30]} e5 {[%emt 0:00:30]} 2. Nf3 {[%emt 0:00:30]} Nc6 {[%emt 0:00:30]} 3. Bb5 {[%emt 0:00:30][%cal Bf1b5,Bb5a4,Ba4b3][%mdl 32]} a6 {[%emt 0:00:30]} 4. Ba4 {[%emt 0:00:30]} Nf6 {[%emt 0:00:30]} 5. O-O {[%emt 0:00:30]} Be7 {[%emt 0:00:30]} 6. Re1 {[%emt 0:00:30]} b5 {[%emt 0:00:30]} 7. Bb3 {[%emt 0:00:30]} O-O {[%emt 0:00:30]} 8. c3 {[%emt 0:00:30]} d6 {[%emt 0:00:30]} 9. h3 {[%emt 0:00:30]} Bb7 {[%emt 0:00:30]} 10. d4 {[%emt 0:00:30]} Re8 {[%emt 0:00:30]} 11. Ng5 {[%emt 0:00:30]} Rf8 {[%emt 0:00:30]} 12. Nf3 {[%emt 0:00:30]} Re8 {[%emt 0:00:30]} 13. Ng5 {[%emt 0:00:30]} Rf8 {[%emt 0:00:30]} 14. Nf3 {[%emt 0:00:30]} Re8 {[%emt 0:00:30]} 15. Ng5 {[%emt 0:00:30] C93: Closed Ruy Lopez: Smyslov Variation.} Rf8 {[%emt 0:00:30]} 16. Nf3 {[%emt 0:00:30]} Re8 {[%emt 0:00:30] 16...Qd7 is the modern continuation. A rather calm draw.   Weighted Error Value: White=0.22 (precise) /Black=0.00 (flawless)   OK:         	---       	Black=2} 17. Nbd2 $146 Bf8 18. a3 h6 19. Bc2 Nb8 20. b3 Nbd7 21. Bb2 Rb8 22. a4 g6 23. axb5 axb5 24. Ra7 d5 25. Nxe5 dxe4 26. c4 {½-½ Sadhwani,R (2659)-Svidler,P (2698) Bundesliga 2425 2024 (7.6)} 1/2-1/2

[Event "2nd Namma Bengaluru Open-A 2025"]
[Site "Bengaluru"]
[Date "2025.04.13"]
[Round "5.2"]
[White "Pranav Anand"]
[Black "Deepan Chakkravarthy J."]
[Result "1-0"]
[Annotator "TA"]
[ECO "E07"]
[WhiteElo "2538"]
[BlackElo "2394"]
[PlyCount "83"]
[EventDate "2025.04.10"]
[EventType "swiss"]
[EventCountry "IND"]
[SourceTitle "playchess.com"]
[Source "ChessBase"]
[SourceQuality "1"]
[TimeControl "5400+30"]

{[%evp 16,83,22,12,14,0,0,0,0,0,0,0,19,4,42,39,45,37,54,53,73,79,113,108,191,189,174,177,269,220,298,275,195,195,312,301,295,299,318,317,313,309,582,581,564,552,570,555,555,555,668,646,666,664,609,601,672,662,760,760,760,749,753,712,766,756,729,639,797,793]} 1. c4 {[%emt 1:31:00]} e6 {[%emt 0:11:05]} 2. Nf3 {[%emt 0:00:00]} d5 {[%emt 0:04:52]} 3. d4 {[%emt 0:00:00]} Nf6 {[%emt 0:00:27]} 4. g3 {[%emt 0:00:00]} Be7 {[%emt 0:05:51]} 5. Bg2 {[%emt 0:00:00]} O-O {[%emt 0:00:05]} 6. O-O {[%emt 0:00:00]} c6 {[%emt 0:00:16]} 7. Nc3 {[%emt 0:00:00]} Nbd7 {[%emt 0:08:59] 7...a5 is the modern continuation.} 8. Qd3 {[%emt 0:00:00]} b6 {[%emt 0:08:26]} 9. e4 {[%emt 0:00:00]} Bb7 {[%emt 0:05:38] E07: Closed Catalan: Main Line (5 Nf3 0-0 6 0-0 Nbd7).} 10. e5 {[%emt 0:00:00]} dxc4 {[%emt 0:11:14]} 11. Qxc4 {[%emt 0:00:00]} Nd5 {[%emt 0:00:02] The position is equal.} 12. Nxd5 {[%emt 0:00:00]} cxd5 {[%emt 0:00:12]} 13. Qa4 {[%emt 0:00:00]} a6 $146 {[%emt 0:12:49]} (13... Nb8 14. Bf4 Qd7 15. Qxd7 Nxd7 16. Rfc1 Rac8 17. Bf1 Nb8 18. a3 Ba6 19. Bxa6 Nxa6 {½-½ Santos Latasa,J (2677)-Livaic,L (2574) Zagreb Peace 2022 (1)}) 14. Re1 {[%emt 0:00:00]} Rc8 {[%emt 0:00:13]} 15. Bf1 {[%emt 0:00:00]} Nb8 {[%emt 0:06:42]} 16. Bd3 {[%emt 0:00:00]} Nc6 {[%emt 0:00:39]} 17. a3 {[%emt 0:00:00]} (17. Bxa6 $2 Ra8 18. Bxb7 Rxa4 $19) 17... Qe8 {[%emt 0:07:47][%cal Oc6e5]} 18. Qd1 {[%emt 0:00:00] White is much more active. White leaves nothing to chance now.} (18. Bxa6 $2 {perishes.} Nxe5 19. Qd1 Nxf3+ 20. Qxf3 Bxa6 $19) 18... Na5 {[%emt 0:06:18]} 19. h4 {[%emt 0:00:00]} h6 {[%emt 0:00:34] [#]} (19... Bc6 $16) 20. Bb1 $1 $18 {[%emt 0:00:00][%cal Oc1h6] aiming for Bxh6!.} h5 {[%emt 0:04:24]} 21. b4 {[%emt 0:10:00]} Nc4 {[%emt 0:00:19] [#]} (21... Rxc1 $142 22. Qxc1 Nc4) 22. Ng5 $1 {[%emt 0:00:00]} Bxg5 {[%emt 0:02:40]} 23. Bxg5 {[%emt 0:00:00]} ({Don't do} 23. Qxh5 $6 Bh6 $18) 23... f6 {[%emt 0:01:36]} 24. exf6 $40 {[%emt 0:00:00][%mdl 128] White is out for blood.} gxf6 {[%emt 0:00:03]} (24... Qf7 $142 25. fxg7 Qxf2+ 26. Kh1 Rf7) 25. Bh6 {[%emt 0:00:00]} Qf7 {[%emt 0:00:01]} 26. Bxf8 {[%emt 0:00:00]} Rxf8 {[%emt 0:00:06]} 27. Bd3 {[%emt 0:00:00]} e5 {[%emt 0:01:44]} 28. Be2 {[%emt 0:00:00]} f5 $2 {[%emt 0:00:53]} (28... e4 29. Rc1 (29. Bxh5 Qh7 $18) 29... f5 30. Bxh5 Qh7) 29. Bxc4 {[%emt 0:00:00] White is clearly winning.} dxc4 {[%emt 0:00:04]} 30. Rxe5 {[%emt 0:00:00]} Re8 {[%emt 0:00:30]} 31. Qe2 {[%emt 0:00:00]} Rxe5 {[%emt 0:00:54]} 32. Qxe5 {[%emt 0:00:00][%mdl 4096] Endgame KQR-KQB} Be4 {[%emt 0:00:06] [#]} 33. d5 $1 {[%emt 0:00:00]} Qxd5 {[%emt 0:00:05]} 34. Qxd5+ {[%emt 0:00:00]} Bxd5 {[%emt 0:00:04] KR-KB} 35. Rd1 {[%emt 0:00:00]} Be4 {[%emt 0:00:03]} 36. Rd7 {[%emt 0:00:00]} Kf8 {[%emt 0:00:31]} 37. Kf1 {[%emt 0:00:00]} Ke8 {[%emt 0:00:04]} 38. Rg7 {[%emt 0:00:00]} Kd8 {[%emt 0:02:37]} 39. Ke1 {[%emt 0:00:00]} c3 {[%emt 0:00:11]} 40. Kd1 {[%emt 0:00:00]} Kc8 {[%emt 0:00:47]} 41. Kc1 {[%emt 0:00:00]} b5 {[%emt 0:00:31]} 42. Rh7 {[%emt 0:00:23] Weighted Error Value: White=0.08 (flawless) /Black=0.46  Mistake:       	---       	Black=4      Inaccurate:     	---       	Black=3      OK:         	White=13    	Black=8      Best:        	---       	Black=1      Strong:       	White=2     	---} 1-0

[Event "2nd Namma Bengaluru Open-A 2025"]
[Site "Bengaluru"]
[Date "2025.04.13"]
[Round "5.3"]
[White "Sanket Chakravarty"]
[Black "Pantsulaia, Levan"]
[Result "*"]
[Annotator "TA"]
[ECO "D05"]
[WhiteElo "2317"]
[BlackElo "2532"]
[PlyCount "128"]
[EventDate "2025.04.10"]
[EventType "swiss"]
[EventCountry "IND"]
[SourceTitle "playchess.com"]
[Source "ChessBase"]
[SourceQuality "1"]
[TimeControl "5400+30"]

{[%evp 9,128,13,15,0,14,0,7,0,3,-6,4,0,17,12,14,6,20,19,52,15,23,9,15,11,16,9,13,12,18,0,0,0,20,0,0,0,-2,-2,0,0,0,0,0,-3,-2,-9,-9,-11,-11,-18,-11,-8,0,-27,-27,-27,-27,-50,-50,-54,-54,-54,-54,-54,-18,-16,-20,-19,-5,-5,-5,-5,-4,-4,-11,-11,-11,-11,-11,-11,-15,-10,-10,-10,0,-13,-13,-213,-212,-210,-210,-203,-188,-211,-173,-249,-253,-300,-324,-389,-387,-531,-555,-469,-506,-581,-581,-565,-558,-532,-485,-583,-556,-542,-542,-531,-528,-5314,-2920,-29995,-239]} 1. d4 {[%emt 0:00:03]} Nf6 {[%emt 0:00:18]} 2. Nf3 {[%emt 0:00:11]} d5 {[%emt 0:01:54]} 3. e3 {[%emt 0:00:06]} e6 {[%emt 0:02:08]} 4. Bd3 {[%emt 0:00:05]} b6 {[%emt 0:00:10]} 5. b3 {[%emt 0:00:21]} Bb7 {[%emt 0:00:48]} 6. Bb2 {[%emt 0:00:06] D05: Colle System with ...e6.} Nbd7 {[%emt 0:00:37]} 7. Nbd2 {[%emt 0:00:27]} Bd6 {[%emt 0:00:30]} 8. Qe2 {[%emt 0:01:53] The position is equal.} Ne4 {[%emt 0:05:04]} 9. O-O {[%emt 0:09:15]} f5 {[%emt 0:05:05]} 10. Ne5 {[%emt 0:03:11]} Bxe5 $146 {[%emt 0:05:11]} (10... O-O 11. f3 Nxd2 12. Qxd2 Nxe5 13. dxe5 Be7 14. Qe2 Qe8 15. c4 c6 16. Rac1 Rc8 17. cxd5 cxd5 {½-½ Wageih,K (2110)-Blum,N (2224) Wch U16 Kemer 2007 (8)}) 11. dxe5 {[%emt 0:00:43]} O-O {[%emt 0:00:12]} 12. f3 {[%emt 0:09:17]} Nxd2 {[%emt 0:06:44]} 13. Qxd2 {[%emt 0:00:04]} Qe7 {[%emt 0:00:46]} 14. Rad1 {[%emt 0:03:30]} Rfd8 {[%emt 0:03:31]} 15. Qe2 {[%emt 0:02:34]} Nc5 {[%emt 0:04:29]} 16. Ba3 {[%emt 0:12:05]} a5 {[%emt 0:01:34]} 17. c4 {[%emt 0:15:36]} a4 {[%emt 0:03:23]} 18. Bb4 {[%emt 0:01:48]} c6 {[%emt 0:15:42]} 19. cxd5 {[%emt 0:02:49]} cxd5 {[%emt 0:00:38]} 20. bxa4 {[%emt 0:02:38]} Qh4 {[%emt 0:05:47]} 21. Qe1 {[%emt 0:05:39]} (21. Qb2 {is interesting.} Nxd3 22. Rxd3 Ba6 23. Rd4) 21... Qxe1 {[%emt 0:08:49]} 22. Rfxe1 {[%emt 0:00:14]} Rxa4 {[%emt 0:04:59]} 23. a3 {[%emt 0:00:05]} Nxd3 {[%emt 0:01:19]} 24. Rxd3 {[%emt 0:00:27]} Rc8 {[%emt 0:00:21]} 25. Rd2 {[%emt 0:01:35]} Rc4 {[%emt 0:02:05]} 26. Rb1 {[%emt 0:02:51]} Bc6 {[%emt 0:00:30]} 27. f4 {[%emt 0:07:37]} Kf7 {[%emt 0:00:49]} 28. Kf2 {[%emt 0:00:14]} h6 {[%emt 0:02:11]} 29. g3 {[%emt 0:02:31]} Ra8 {[%emt 0:00:56]} 30. Rd4 {[%emt 0:01:34]} b5 {[%emt 0:00:15]} 31. Rxc4 {[%emt 0:03:46]} dxc4 $11 {[%emt 0:01:15][%mdl 4096] Endgame KRB-KRB} 32. Rd1 {[%emt 0:00:13]} Bd5 {[%emt 0:00:35]} 33. h3 {[%emt 0:00:55]} g5 {[%emt 0:03:04]} 34. Rd2 {[%emt 0:02:29]} Kg6 {[%emt 0:02:32]} 35. Rd1 {[%emt 0:00:04]} Rh8 {[%emt 0:01:01]} 36. Bc3 {[%emt 0:01:22]} h5 {[%emt 0:01:19]} 37. h4 {[%emt 0:01:05]} gxh4 {[%emt 0:00:24]} 38. gxh4 {[%emt 0:00:03]} Ra8 {[%emt 0:00:27]} 39. Bb4 {[%emt 0:00:13]} Kf7 {[%emt 0:00:04]} 40. Rg1 $1 {[%emt 0:00:55]} Be4 {[%emt 0:00:21]} 41. Rd1 {[%emt 0:03:14]} Bd3 {[%emt 0:00:13]} 42. Ra1 {[%emt 0:01:00]} Rc8 {[%emt 0:02:47] ...c3 would now be deadly.} 43. Bc3 {[%emt 0:00:52]} Bc2 {[%emt 0:01:32]} 44. Rg1 {[%emt 0:01:06]} Ra8 {[%emt 0:10:11]} 45. Bb4 {[%emt 0:00:11]} Rd8 {[%emt 0:00:00]} 46. Ke2 {[%emt 0:02:03]} Bd3+ {[%emt 0:00:00]} 47. Kf2 {[%emt 0:01:16]} Be4 {[%emt 0:00:00]} 48. Bc3 $2 {[%emt 0:00:28] This move loses the game for White.} (48. Bd6 $11) 48... Rd3 $19 {[%emt 0:00:00]} 49. Rc1 {[%emt 0:00:01]} Ke8 $1 {[%emt 0:00:00]} 50. Ke2 {[%emt 0:00:07]} Kd7 {[%emt 0:00:00]} 51. Bb4 {[%emt 0:02:25] [#]} Rb3 $1 {[%emt 0:00:00]} 52. Kd2 {[%emt 0:02:19]} (52. Rd1+ $142 Kc8 53. Rd6) 52... Kc6 {[%emt 0:00:00]} 53. Rg1 {[%emt 0:00:39]} Kd5 {[%emt 0:00:00]} (53... Rd3+ 54. Ke2 $17) 54. Rg8 {[%emt 0:00:28]} Rb2+ {[%emt 0:00:00]} ({Weaker is} 54... Rd3+ 55. Ke2 $15) 55. Kc1 {[%emt 0:00:18]} Rc2+ {[%emt 0:00:00]} 56. Kd1 {[%emt 0:00:03] [#]} Bd3 $1 {[%emt 0:00:00]} ({And not} 56... c3 57. Rc8 Rd2+ 58. Kc1 Rc2+ 59. Kd1 Rd2+ 60. Kc1 $11) 57. Rd8+ {[%emt 0:00:55]} Ke4 {[%emt 0:00:00]} 58. Bc5 {[%emt 0:00:00]} Ra2 {[%emt 0:00:13]} 59. Rd6 {[%emt 0:00:29]} Kf3 {[%emt 0:00:31]} 60. Rd8 {[%emt 0:00:43]} Be4 {[%emt 0:00:20]} 61. Bb4 {[%emt 0:00:52] Dodges c3} Kxe3 {[%emt 0:00:08][%cal Ra2a1]} 62. Bd2+ {[%emt 0:00:17]} Kf3 {[%emt 0:00:07]} 63. Bc1 {[%emt 0:00:34]} Rh2 {[%emt 0:00:44]} 64. Rd6 {[%emt 0:00:41] Loses game:     	White=1     	---        Mistake:       	White=1     	---        Inaccurate:     	White=5     	Black=3      OK:         	White=17    	Black=27     Best:        	White=2     	Black=5      Strong:       	White=1     	Black=3} Rh1+ $2 {[%emt 0:00:05] Weighted Error Value: White=0.40/Black=0.11 (very precise)} (64... Bc2+ {mates} 65. Ke1 c3 (65... Rxh4 $2 66. Kd2 $19) 66. Rd3+ Bxd3 67. Be3 Rh1+ 68. Bg1 Rxg1#) *

[Event "2nd Namma Bengaluru Open-A 2025"]
[Site "Bengaluru"]
[Date "2025.04.13"]
[Round "5.3"]
[White "Sanket Chakravarty"]
[Black "Pantsulaia, Levan"]
[Result "0-1"]
[Annotator "ChessBase"]
[ECO "D33"]
[WhiteElo "2317"]
[BlackElo "2532"]
[PlyCount "102"]
[EventDate "2025.04.10"]
[EventType "swiss"]
[EventCountry "IND"]
[SourceTitle "playchess.com"]
[Source "ChessBase"]
[SourceQuality "1"]
[TimeControl "5400+30"]

1. c4 c5 2. Nc3 Nf6 3. g3 e6 4. Nf3 d5 5. cxd5 exd5 6. d4 h6 7. Bg2 Nc6 8. O-O a6 9. b3 Be6 10. Bb2 Be7 11. Rc1 O-O 12. dxc5 Bxc5 13. Na4 {[%emt 0:06:30]} Ba7 {[%emt 0:06:30]} 14. Nd4 {[%emt 0:00:30]} Bxd4 {[%emt 0:00:30]} 15. Bxd4 {[%emt 0:00:30]} Re8 {[%emt 0:00:30]} 16. e3 {[%emt 0:00:30]} Qe7 {[%emt 0:00:30]} 17. Bb2 {[%emt 0:00:30]} Ne4 {[%emt 0:00:30]} 18. Nc3 {[%emt 0:00:30]} Nxc3 {[%emt 0:00:30]} 19. Bxc3 {[%emt 0:00:30]} Rad8 {[%emt 0:00:30]} 20. Bd4 {[%emt 0:00:30]} Bf5 {[%emt 0:00:30]} 21. Bb6 {[%emt 0:00:30]} Rd7 {[%emt 0:00:30]} 22. Rc5 {[%emt 0:00:30]} Be4 {[%emt 0:00:30]} 23. f3 {[%emt 0:00:30]} Bg6 {[%emt 0:00:30]} 24. Rxd5 {[%emt 0:00:30]} Rxd5 {[%emt 0:00:30]} 25. Qxd5 {[%emt 0:00:30]} Qb4 {[%emt 0:00:30]} 26. Qc5 {[%emt 0:00:30]} Qd2 {[%emt 0:00:30]} 27. Rf2 {[%emt 0:00:30]} Qd1+ {[%emt 0:00:30]} 28. Rf1 {[%emt 0:00:30]} Qd2 {[%emt 0:00:30]} 29. e4 {[%emt 0:00:30]} Qxa2 {[%emt 0:00:30]} 30. Qd5 {[%emt 0:00:30]} Re5 {[%emt 0:00:30]} 31. Qd7 {[%emt 0:00:30]} Qxb3 {[%emt 0:00:30]} 32. Qxb7 {[%emt 0:00:30]} Rb5 {[%emt 0:00:30]} 33. Qc8+ {[%emt 0:00:30]} Kh7 {[%emt 0:00:30]} 34. Bf2 {[%emt 0:00:30]} Nb4 {[%emt 0:00:30]} 35. f4 {[%emt 0:00:30]} a5 {[%emt 0:00:30]} 36. f5 {[%emt 0:00:30]} Bh5 {[%emt 0:00:30]} 37. f6 {[%emt 0:00:30]} Qe6 {[%emt 0:00:30]} 38. Qxe6 {[%emt 0:00:30]} fxe6 {[%emt 0:00:30]} 39. Be3 {[%emt 0:00:30]} Bf7 {[%emt 0:00:30]} 40. fxg7 {[%emt 0:00:30]} Kxg7 {[%emt 0:00:30]} 41. Bxh6+ {[%emt 0:00:30]} Kxh6 {[%emt 0:00:30]} 42. Rxf7 {[%emt 0:00:30]} Kg6 {[%emt 0:00:30]} 43. Ra7 {[%emt 0:00:30]} Kf6 {[%emt 0:00:30]} 44. h4 {[%emt 0:00:30]} Nc6 {[%emt 0:00:30]} 45. Ra6 {[%emt 0:00:30]} Nd4 {[%emt 0:00:30]} 46. g4 {[%emt 0:00:30]} Ke5 {[%emt 0:00:30]} 47. g5 {[%emt 0:00:30]} Kf4 {[%emt 0:00:30]} 48. Rd6 {[%emt 0:00:30]} e5 {[%emt 0:00:30]} 49. g6 {[%emt 0:00:30]} Kg3 {[%emt 0:00:30]} 50. Rxd4 {[%emt 0:00:30]} exd4 {[%emt 0:00:30]} 51. g7 {[%emt 0:00:30]} Rb8 {[%emt 0:00:30]} 0-1

[Event "2nd Namma Bengaluru Open-A 2025"]
[Site "Bengaluru"]
[Date "2025.04.13"]
[Round "5.10"]
[White "Manish Anto Cristiano F"]
[Black "Harshit Ranjan Sahu"]
[Result "1-0"]
[Annotator "ChessBase"]
[ECO "A26"]
[WhiteElo "2361"]
[BlackElo "2142"]
[PlyCount "71"]
[EventDate "2025.04.10"]
[EventType "swiss"]
[EventCountry "IND"]
[SourceTitle "playchess.com"]
[Source "ChessBase"]
[SourceQuality "1"]
[TimeControl "5400+30"]

1. c4 Nf6 2. Nc3 g6 3. g3 Bg7 4. Bg2 O-O 5. Nf3 d6 6. O-O e5 7. d3 {[%emt 0:03:30]} Nc6 {[%emt 0:03:30]} 8. Rb1 {[%emt 0:00:30]} Re8 {[%emt 0:00:30]} 9. b4 {[%emt 0:00:30]} Ne7 {[%emt 0:00:30]} 10. e4 {[%emt 0:00:30]} Nd7 {[%emt 0:00:30]} 11. Bd2 {[%emt 0:00:30]} Nf8 {[%emt 0:00:30]} 12. Kh1 {[%emt 0:00:30]} Ne6 {[%emt 0:00:30]} 13. Ng5 {[%emt 0:00:30]} Nd4 {[%emt 0:00:30]} 14. f4 {[%emt 0:00:30]} h6 {[%emt 0:00:30]} 15. Nf3 {[%emt 0:00:30]} Bg4 {[%emt 0:00:30]} 16. Qe1 {[%emt 0:00:30]} Bxf3 {[%emt 0:00:30]} 17. Bxf3 {[%emt 0:00:30]} exf4 {[%emt 0:00:30]} 18. Bxf4 {[%emt 0:00:30]} g5 {[%emt 0:00:30]} 19. Bd2 {[%emt 0:00:30]} Nxf3 {[%emt 0:00:30]} 20. Rxf3 {[%emt 0:00:30]} Ng6 {[%emt 0:00:30]} 21. Qf1 {[%emt 0:00:30]} Qd7 {[%emt 0:00:30]} 22. Nd5 {[%emt 0:00:30]} c6 {[%emt 0:00:30]} 23. Ne3 {[%emt 0:00:30]} Re6 {[%emt 0:00:30]} 24. Rf5 {[%emt 0:00:30]} Rae8 {[%emt 0:00:30]} 25. Qf2 {[%emt 0:00:30]} Ne5 {[%emt 0:00:30]} 26. Qe2 {[%emt 0:00:30]} Rf6 {[%emt 0:00:30]} 27. Rxf6 {[%emt 0:00:30]} Bxf6 {[%emt 0:00:30]} 28. Rf1 {[%emt 0:00:30]} Bg7 {[%emt 0:00:30]} 29. Bc1 {[%emt 0:00:30]} Qe6 {[%emt 0:00:30]} 30. Nf5 {[%emt 0:00:30]} Bf8 {[%emt 0:00:30]} 31. Bb2 {[%emt 0:00:30]} d5 {[%emt 0:00:30]} 32. exd5 {[%emt 0:00:30]} cxd5 {[%emt 0:00:30]} 33. c5 {[%emt 0:00:30]} Nc6 {[%emt 0:00:30]} 34. Qf2 {[%emt 0:00:30]} f6 {[%emt 0:00:30]} 35. Nd4 {[%emt 0:00:30]} Nxd4 {[%emt 0:00:30]} 36. Bxd4 {[%emt 0:00:30]} 1-0

[Event "2nd Namma Bengaluru Open-A 2025"]
[Site "Bengaluru"]
[Date "2025.04.13"]
[Round "5.11"]
[White "Ajay Santhosh Parvathareddy"]
[Black "Padmini, Rout"]
[Result "0-1"]
[Annotator "ChessBase"]
[ECO "C65"]
[WhiteElo "2297"]
[BlackElo "2354"]
[PlyCount "100"]
[EventDate "2025.04.10"]
[EventType "swiss"]
[EventCountry "IND"]
[SourceTitle "playchess.com"]
[Source "ChessBase"]
[SourceQuality "1"]
[TimeControl "5400+30"]

1. e4 e5 2. Nf3 Nc6 3. Bb5 Nf6 4. d3 Bc5 5. c3 d6 6. d4 exd4 7. cxd4 Bb4+ 8. Bd2 Bxd2+ 9. Nbxd2 O-O 10. O-O Bg4 11. Qc2 Ne7 12. h3 {[%emt 0:06:00]} Bd7 {[%emt 0:06:00]} 13. Bd3 {[%emt 0:00:30]} Ng6 {[%emt 0:00:30]} 14. Rfe1 {[%emt 0:00:30]} c6 {[%emt 0:00:30]} 15. e5 {[%emt 0:00:30]} dxe5 {[%emt 0:00:30]} 16. dxe5 {[%emt 0:00:30]} Nd5 {[%emt 0:00:30]} 17. a3 {[%emt 0:00:30]} Ndf4 {[%emt 0:00:30]} 18. Be4 {[%emt 0:00:30]} f5 {[%emt 0:00:30]} 19. Bd3 {[%emt 0:00:30]} Nxd3 {[%emt 0:00:30]} 20. Qxd3 {[%emt 0:00:30]} Be6 {[%emt 0:00:30]} 21. Qc3 {[%emt 0:00:30]} Bd5 {[%emt 0:00:30]} 22. Rad1 {[%emt 0:00:30]} Qe7 {[%emt 0:00:30]} 23. Nc4 {[%emt 0:00:30]} Rad8 {[%emt 0:00:30]} 24. Rd4 {[%emt 0:00:30]} h6 {[%emt 0:00:30]} 25. Red1 {[%emt 0:00:30]} Kh7 {[%emt 0:00:30]} 26. R1d2 {[%emt 0:00:30]} b5 {[%emt 0:00:30]} 27. Ne3 {[%emt 0:00:30]} Bxf3 {[%emt 0:00:30]} 28. Rxd8 {[%emt 0:00:30]} Rxd8 {[%emt 0:00:30]} 29. Rxd8 {[%emt 0:00:30]} Qxd8 {[%emt 0:00:30]} 30. gxf3 {[%emt 0:00:30]} Qg5+ {[%emt 0:00:30]} 31. Kf1 {[%emt 0:00:30]} f4 {[%emt 0:00:30]} 32. Ng2 {[%emt 0:00:30]} Nxe5 {[%emt 0:00:30]} 33. Qc2+ {[%emt 0:00:30]} Qg6 {[%emt 0:00:30]} 34. Qxg6+ {[%emt 0:00:30]} Kxg6 {[%emt 0:00:30]} 35. Nxf4+ {[%emt 0:00:30]} Kf5 {[%emt 0:00:30]} 36. Ne2 {[%emt 0:00:30]} Nxf3 {[%emt 0:00:30]} 37. Kg2 {[%emt 0:00:30]} Ne1+ {[%emt 0:00:30]} 38. Kf1 {[%emt 0:00:30]} Nc2 {[%emt 0:00:30]} 39. Ng3+ {[%emt 0:00:30]} Ke5 {[%emt 0:00:30]} 40. Ke2 {[%emt 0:00:30]} c5 {[%emt 0:00:30]} 41. Kd3 {[%emt 0:00:30]} Nd4 {[%emt 0:00:30]} 42. Nf1 {[%emt 0:00:30]} g5 {[%emt 0:00:30]} 43. Ng3 {[%emt 0:00:30]} Ne6 {[%emt 0:00:30]} 44. Ne4 {[%emt 0:00:30]} Nf4+ {[%emt 0:00:30]} 45. Ke3 {[%emt 0:00:30]} c4 {[%emt 0:00:30]} 46. Nc3 {[%emt 0:00:30]} a6 {[%emt 0:00:30]} 47. Ne4 {[%emt 0:00:30]} Nxh3 {[%emt 0:00:30]} 48. Nc5 {[%emt 0:00:30]} Nf4 {[%emt 0:00:30]} 49. Nxa6 {[%emt 0:00:30]} Nd5+ {[%emt 0:00:30]} 50. Kf3 {[%emt 0:00:30]} Kd4 {[%emt 0:00:30]} 0-1